Cogmind - Beta 9.1 @@@ ROGUE MODE // 2019.11.10 @ 18:04:01 Player: Fleshy Vegetable Bird Result: Destroyed by D-53 Grenadier with Mini Grenade Launcher Performance ------------- Evolutions (0) 0 Regions Visited (2) 400 Robots Destroyed (31) 155 Value Destroyed (330) 330 Prototype IDs (2) 40 Alien Tech Used (0) 0 Bonus (-95) -95 TOTAL SCORE: 830 Bonus ------- Follower Combat Kills 101 Friendly Fire -196 Cogmind --------- Core Integrity 0/250 Matter 201/300 Energy 2/265 System Corruption 0% Temperature Cool (5) Location -10/Mines Parts ------- Power (1) Improved Ion Engine Propulsion (2) Wheel Wheel Utility (2) Large Storage Unit Large Storage Unit Weapon (2) Shock Rifle Shock Rifle Inventory (16) Wheel Wheel Airjet Medium Storage Unit Targeting Computer Target Analyzer ECM Suite Improved Propulsion Shielding Hacking Suite Hacking Suite Assault Rifle Mining Laser Peak State ------------ Power Improved Ion Engine Propulsion Wheel Wheel Utility Large Storage Unit Large Storage Unit Weapon Shock Rifle Shock Rifle Inventory Wheel Wheel Airjet Medium Storage Unit Targeting Computer Target Analyzer ECM Suite Improved Propulsion Shielding Hacking Suite Hacking Suite Assault Rifle Mining Laser [Rating: 14] Favorites ----------- Power Ion Engine Engine Ion Engine Propulsion Wheel Wheel Wheel Utility Large Storage Unit Storage Large Storage Unit Weapon Small Laser Energy Gun Small Laser Energy Cannon Beam Cannon Ballistic Gun Assault Rifle Launcher Grenade Launcher Special Weapon Mining Laser Build | -11 -10 -10 ------- Run | Scr Mat Min Slots Evolved . | . . . Power . | . . . Propulsion . | . . . Utility . | . . . Weapon . | . . . Parts Attached 31 | 7 12 12 Power 4 | 1 1 2 Engine 4 | 1 1 2 Core . | . . . Reactor . | . . . Propulsion 10 | 2 3 5 Treads . | . . . Leg . | . . . Wheel 10 | 2 3 5 Hover . | . . . Flight . | . . . Utility 4 | 2 2 . Device . | . . . Storage 4 | 2 2 . Processor . | . . . Hackware . | . . . Protection . | . . . Artifact . | . . . Weapon 13 | 2 6 5 Energy Gun 5 | 2 1 2 Energy Cannon 1 | . 1 . Ballistic Gun 3 | . 1 2 Ballistic Cannon . | . . . Launcher 3 | . 2 1 Special Weapon 1 | . 1 . Impact Weapon . | . . . Slashing Weapon . | . . . Piercing Weapon . | . . . Special Melee Weapon . | . . . Unidentified Prototypes . | . . . Parts Lost 8 | . 1 7 Power 1 | . . 1 Propulsion 2 | . . 2 Utility . | . . . Weapon 5 | . 1 4 Highest Loss Streak 3 | . 1 3 Average Slot Usage (%) 97 | . 100 92 Engine 13 | . 14 13 Wheel 27 | . 28 27 Storage 28 | . 28 28 Energy Gun 13 | . 18 5 Energy Cannon 5 | . 4 5 Ballistic Gun 5 | . 2 9 Launcher 1 | . 1 1 Naked Turns . | . . . Heaviest Build 45 | 15 41 45 Greatest Support 26 | 26 26 20 Greatest Overweight (x) 2 | . 1 2 Average Overweight (x) . | . . 1 Largest Inventory Capacity 16 | 8 16 16 Average Capacity 15 | 7 15 16 Most Carried 16 | 6 12 16 Average Carried 10 | 3 8 14 Final Capacity 16 | 8 16 16 Final Carried 12 | 6 11 12 Class Distribution -------------------- 100% | Mutant Dominant Class ---------------- Mutant | -10/Materials Mutant | -10/Mines Resources | -11 -10 -10 ----------- Run | Scr Mat Min Matter Collected 500 | 270 180 50 Remotely . | . . . Salvage Created 561 | 132 328 101 Parts 51 | 13 23 15 Haulers Intercepted 1 | . 1 . Recyclers Shooed 1 | . 1 . Parts Field Recycled . | . . . Retrieved Matter . | . . . Parts Self-Destructed . | . . . Prevented . | . . . Kills | -11 -10 -10 ------- Run | Scr Mat Min Combat Hostiles Destroyed 17 | . 8 9 Guns 7 | . 5 2 AOE 10 | . 3 7 Classes Destroyed 9 | 2 5 2 Worker 2 | . 2 . Builder 2 | . . 2 Tunneler 5 | 4 . 1 Hauler 1 | . 1 . Recycler 1 | 1 . . Operator 2 | . 2 . Swarmer 4 | . 3 1 Grunt 6 | . 5 1 Assembled 8 | . . 8 Best Kill Streak 9 | 4 4 9 Combat Bots Only 8 | . 3 8 Max Kills in Single Turn 3 | 1 2 3 Gunslinging . | . . . Exploded 2 | . 2 2 Melee . | . . . Uniques/NPCs Destroyed . | . . . Combat | -11 -10 -10 -------- Run | Scr Mat Min Damage Taken 1053 | . 322 731 Core 252 | . 48 204 Absorbed by Shields . | . . . Core Remaining (%) 100 | 100 . . Volleys Fired 81 | 11 41 29 Largest 2 | 2 2 2 Hottest 100 | 80 100 100 Shots Fired 138 | 22 75 41 Gun 103 | 22 53 28 Cannon 22 | . 13 9 Launcher 9 | . 5 4 Special 4 | . 4 . Kinetic 17 | . 5 12 Thermal 101 | 22 65 14 Explosive 9 | . 5 4 Electromagnetic 11 | . . 11 Robot Hit Streak 6 | 3 6 5 Robot Miss Streak 5 | 2 4 5 Penetration Max . | . . . Secondary Targets . | . . . Shots Hit Robots 63 | 11 38 14 Core Hits 56 | 6 24 26 Critical Hits . | . . . Critical Kills . | . . . Critical Parts Destroyed . | . . . Melee Attacks . | . . . Impact . | . . . Slashing . | . . . Piercing . | . . . Sneak Attacks . | . . . Combat Hostiles . | . . . Follow-up Attacks . | . . . Damage Inflicted 1663 | 107 674 882 Guns 529 | 107 338 84 Cannons 122 | . 87 35 Explosions 988 | . 225 763 Melee . | . . . Ramming . | . . . Kinetic 99 | . 43 56 Thermal 560 | 107 406 47 Explosive 988 | . 225 763 Electromagnetic 16 | . . 16 Impact . | . . . Slashing . | . . . Piercing . | . . . Highest Corruption . | . . . Average Corruption . | . . . Corruption Purged . | . . . Overload Shots . | . . . Overflow Damage 19 | . 16 3 Projectiles 16 | . 16 . Explosions 3 | . . 3 Melee . | . . . Knockbacks . | . . . Impact . | . . . Kinetic . | . . . Secondary . | . . . Self-Inflicted Damage 27 | . . 27 Shots 2 | . . 2 Rammed . | . . . Targets Rammed . | . . . Kicked . | . . . Crushed . | . . . Highest Temperature 151 | 90 151 80 Average Temperature 39 | 31 45 29 Received Heat Transfer 138 | . 129 9 Siege Activations . | . . . Robots Corrupted . | . . . Combat Hostiles . | . . . Parts Fried . | . . . Impact Corruptions . | . . . Robots Melted . | . . . Combat Hostiles . | . . . Parts Melted . | . . . Heat Transferred 1259 | 250 910 99 Parts Sabotaged . | . . . Parts Stolen . | . . . Parts Stripped . | . . . Power Chain Reactions . | . . . Missiles Intercepted . | . . . Alert | -11 -10 -10 ------- Run | Scr Mat Min Peak Influence 243 | 25 213 243 Average Influence 116 | 9 111 151 Maximum Alert Level 1 | . 1 1 Low Security (%) 80 | . . . Level 1 19 | . . . Level 2 . | . . . Level 3 . | . . . Level 4 . | . . . Level 5 . | . . . High Security . | . . . Max Security . | . . . Squads Dispatched 3 | . 2 1 Investigation 2 | . 1 1 Extermination . | . . . Reinforcement 1 | . 1 . Assault . | . . . Garrison . | . . . Intercept . | . . . Construction Impeded . | . . . Haulers Reinforced . | . . . Stealth | -11 -10 -10 --------- Run | Scr Mat Min Distress Signals 4 | . 4 . Communications Jammed . | . . . Distress Signals . | . . . Times Spotted 59 | . 30 29 Peak Tracking Total 15 | . 3 15 Tactical Retreats 6 | . 3 3 Traps | -11 -10 -10 ------- Run | Scr Mat Min Traps Triggered 2 | . 2 . Indirectly . | . . . Trap Hack Attempts . | . . . Triggered . | . . . Disarmed . | . . . Reprogrammed . | . . . Reused . | . . . Traps Extracted . | . . . Installed . | . . . Triggered . | . . . Machines | -11 -10 -10 ---------- Run | Scr Mat Min Machines Disabled 2 | . 2 . Max in Single Turn 1 | . 1 . Machines Sabotaged . | . . . Garrisons Compromised . | . . . Overloaded Fab Kills . | . . . Fab Network Shutdowns . | . . . Hacking | -11 -10 -10 --------- Run | Scr Mat Min Machines Accessed 7 | . 6 1 Terminals 6 | . 6 . Fabricators . | . . . Repair Stations . | . . . Recycling Units . | . . . Scanalyzers . | . . . Garrison Access . | . . . Total Hacks 25 | . 24 1 Successful 16 | . 15 1 Failed 9 | . 9 . Catastrophic . | . . . Database Lockouts . | . . . Manual 20 | . 20 . Terminals 24 | . 24 . Fabricators . | . . . Repair Stations . | . . . Recycling Units . | . . . Scanalyzers . | . . . Garrison Access . | . . . Terminal Hacks 8 | . 7 1 Part Schematic 2 | . 2 . Prototype ID Bank 1 | . 1 . Open Door 1 | . . 1 Terminal Index 1 | . 1 . Alert Level 1 | . 1 . Unreport Threat 1 | . 1 . Recall Reinforcements 1 | . 1 . Fabricator Hacks . | . . . Repair Station Hacks . | . . . Recycling Unit Hacks . | . . . Scanalyzer . | . . . Garrison Access Hacks . | . . . Unauthorized Hacks 24 | . 24 . Terminals 8 | . 8 . Track 2 | . 2 . Assimilate 1 | . 1 . Botnet 4 | . 4 . Operators 1 | . 1 . Fabricators . | . . . Repair Stations . | . . . Recycling Units . | . . . Scanalyzers . | . . . Garrison Access . | . . . Data Cores Recovered . | . . . Used . | . . . Hacking Detections 6 | . 6 . Full Trace Events . | . . . Feedback Events . | . . . Feedback Blocked . | . . . Robot Schematics Acquired . | . . . Robots Built . | . . . Matter . | . . . Time . | . . . Total Robot Build Rating . | . . . Part Schematics Acquired 2 | . 2 . Parts Built . | . . . Matter . | . . . Time . | . . . Total Part Build Rating . | . . . Parts Repaired . | . . . Time . | . . . Parts Recycled . | . . . Recycled Matter . | . . . Retrieved Matter . | . . . Retrieved Components . | . . . Parts Scanalyzed . | . . . Part Schematics Acquired . | . . . Parts Damaged . | . . . Bothacking | -11 -10 -10 ------------ Run | Scr Mat Min Used RIF Installer . | . . . Robots Hacked . | . . . Non-combat . | . . . Combat . | . . . Robot Hacks Applied . | . . . Relay Couplers Released . | . . . Robots Rewired . | . . . Allies Hacked . | . . . Hacks Repelled . | . . . Allies | -11 -10 -10 -------- Run | Scr Mat Min Total Allies 4 | . 1 3 Largest Group 3 | . 1 3 Highest-Rated Group 40 | . 10 40 Highest-Rated Ally 16 | . 10 16 Total Orders . | . . . Ally Attacks 43 | . . 43 Total Damage 403 | . . 403 Kills 7 | . . 7 Allies Corrupted . | . . . Allies Melted . | . . . Intel | -11 -10 -10 ------- Run | Scr Mat Min Robot Analysis Total . | . . . Derelict Logs Recovered 1 | . . 1 Drone Launches . | . . . Drone Recoveries . | . . . Exploration | -11 -10 -10 ------------- Run | Scr Mat Min Turns Passed 1298 | 112 717 469 Spaces Moved 919 | 70 528 321 Core 9 | 9 . . Treads . | . . . Legs . | . . . Wheels 910 | 61 528 321 Hover . | . . . Flight . | . . . Fastest Speed 50 | 50 90 90 Average Speed 93 | 84 95 90 Slowest Speed 100 | 90 100 100 Overloaded Moves . | . . . Propulsion Burnouts . | . . . Robots Hopped . | . . . Cave-ins Triggered . | . . . Exploration Rate (%) 48 | 4 76 65 Regions Visited 2 Branch Regions 1 Pre-discovered Areas . | . . . Known Exits Taken . | . . . Unknown Exits Taken 2 | 1 1 . Scrap Searched 2 | . . 2 Spaces Dug 2 | . 2 . Terrain Destroyed 51 | . 31 20 Melee . | . . . Projectile 2 | . 2 . AOE 49 | . 29 20 Actions | -11 -10 -10 --------- Run | Scr Mat Min Total 1220 | 100 653 467 Wait 134 | . 53 81 Move 917 | 69 527 321 Hop . | . . . Pick Up 42 | 13 13 16 Fast Attach . | . . . Attach 15 | 7 1 7 Detach . | . . . Swap 16 | . 11 5 Drop 15 | . 7 8 Fire 81 | 11 41 29 Melee . | . . . Ram . | . . . Kick . | . . . Crush . | . . . Escape Stasis . | . . . Rewire . | . . . Trap . | . . . Miscellaneous . | . . . Route ------- -11/Scrapyard -10/Materials (discovered 4 exits: [*Mat x2] / *Min x2) -10/Mines (discovered 1 exit: [*Mat]) History --------- Turn | Location | Event 8 | -11/Scrapyard | Discovered new exit (range 15) 113 | -11/Scrapyard | Entered Materials 175 | -10/Materials | Discovered new exit (range 6) 275 | -10/Materials | Discovered new exit (range 16) 323 | -10/Materials | Discovered new exit (range 6) 327 | -10/Materials | Build established: Mutant 464 | -10/Materials | Discovered new exit (range 9) 830 | -10/Materials | Entered Mines 867 | -10/Mines | Assisted by bots powering up and referring to "LRC-V3" 877 | -10/Mines | Discovered new exit (range 9) 1101 | -10/Mines | Learned location of 1 exit from Materials 1110 | -10/Mines | Met a Derelict shopkeep closing up shop 1139 | -10/Mines | Assembled infested the area 1144 | -10/Mines | Assisted by a Guerilla fighting off Assembled 1157 | -10/Mines | Core integrity fell below 50% 1186 | -10/Mines | Destroyed 8 combat bots 1220 | -10/Mines | Lost 3 parts (1n2w) 1286 | -10/Mines | Core integrity fell below 20% 1299 | -10/Mines | Destroyed by D-53 Grenadier with Mini Grenade Launcher Last Messages --------------- 01183_ Lgt. Assault Rifle destroyed. 01185_ Grenade Launcher destroyed. 01189_ Wheel destroyed. 01190_ as-65739 destroyed. 01193_ as-57597 destroyed. 01193_ as-85679 destroyed. 01194_ The unstable cave ceiling collapses. 01262_ Acquired Wheel. 01263_ Acquired 23 matter. 01265_ Dropped Wheel. 01265_ Acquired Wheel. 01267_ The unstable cave ceiling collapses. 01268_ Dropped Wheel. 01268_ Acquired Wheel. 01279_ Ion Engine destroyed. 01285_ The unstable cave ceiling collapses. 01285_ Wheel destroyed. 01286_ The unstable cave ceiling collapses. 01286_ Imp. Light Armor Plating crushed. 01296_ The unstable cave ceiling collapses. Map ----- +----------------------------------------------------+ | | | | | | | | | | | | | | | | | | | | | | | | | | | | | | | | | | | ??????????????????????????????????????????????#??? | | ###############????????????????????????????##"#### | | ## ##????#######???????######### # | | # ###### ##?????##""## #? | | + ## * #?????#" * #X %= ## | | + %=## ### ## ##????#"!!= = | | ! # ##%#?????# ### ##???#"=*! = | | !## ###=#?????# ## ##??#"! # ## | | ## #?#%####### # @ ##?##""## = # #? | | ?## ##?#%[% #??#### * ## ? | | ??####??#*######## ### ### | | ??????###**##????# d % ### #?? | | ?????## = #????# #???# #??? | | ????## #????# # # # ##????##??? | | ???## ##????## # #??#??????????? | | #### ##??????### #?????????????? | | # ##?????????## #?????????????? | | ##??????????# #?????????????? | | ##?????????# ## ###?????????????? | | %/ #??????# # ####???????????????? | | # # %### ##??????## # # ?#??????????????????? | | #### |#??#####????????# #] # ???????????????????? | | ???# #???????????????# # ???????????????????? | | ???# #######?????????? # #?##??????????????????? | | ???# #??????????## ?????????????????????? | | ???# ##### #???????????## #?????????????????????? | | ???# #???# #????????????????????????????????????? | | ???# #???# #????????????????????????????????????? | | ???# #???# #?????###????????????????????????????? | | ???# #???# #???## ##???????????????????????????? | | ???# #???# #??# #???????????????????????????? | | ??## ##??# #?# #???????????????????????????? | | ??# =*%#### ## #????????????????????????????? | +----------------------------------------------------+ Best States ------------- Heat Dissipation 25 Energy Generation 12 Energy Capacity 265 Matter Stores 300 Matter Capacity 300 Sight Range 16 Terrain Scan Density 10 Evasion (%) 50 Item Schematics ----------------- Wheel | -10/Materials | Hacked Lrg. Storage Unit | -10/Materials | Hacked Robot Schematics ------------------ None Fabricated ------------ Nothing Alien Tech Used ----------------- None Achievements -------------- None Challenges ------------ None Game ------ Seed KineticIntegrationScythe Manual? 0 Play Time 00:15:33 Cumulative 164.6 hours Start 2019.11.10 @ 17:50:31 End 2019.11.10 @ 18:04:01 Sessions 1 Manual Loads 0 Difficulty Rogue Special Mode None Game No. 236 Rogue 236 Adventurer 0 Explorer 0 Win Type - Total 1 Types 1/0/0/0/0/0/0 Lore% 48 Gallery% 67 Achievement% 42 Wizard Run 0 Options --------- ASCII 0 Keyboard 0 Movement Numpad Keybinds 0 Fullscreen 1 Font 16/Terminus Map View 75x55 Tactical HUD 1 Map Filters NONE Filters NONE Steam 1 RUN: f5a0c5d1-acfb-4fe0-9b23-b9c67bc9d3fd